[Event "DSAM Bad Wildungen 2024"]
[Site "Bad Wildungen"]
[Date "2024.08.02"]
[Round "3.8"]
[White "Vladov, Arsenii"]
[Black "Menzel, Maximilian"]
[Result "1/2-1/2"]
[Annotator "ChessBase"]
[ECO "D03"]
[WhiteElo "2063"]
[BlackElo "2108"]
[PlyCount "112"]
[EventDate "2024.07.31"]
[EventCountry "GER"]
[SourceTitle "playchess.com"]
[Source "ChessBase"]
[SourceQuality "1"]
[TimeControl "40/5400+30:900+30"]

1. d4 {[%emt 0:00:02]} Nf6 {[%emt 0:00:08]} 2. Nf3 {[%emt 0:00:09]} e6 {[%emt 0:00:09]} 3. Bg5 {[%emt 0:00:41]} d5 {[%emt 0:00:39]} 4. Nbd2 {[%emt 0:00:33]} Be7 {[%emt 0:01:06]} 5. e3 {[%emt 0:00:17]} c5 {[%emt 0:01:08]} 6. c3 {[%emt 0:02:12]} Nbd7 {[%emt 0:01:54]} 7. Bd3 {[%emt 0:00:55]} h6 {[%emt 0:02:29]} 8. Bf4 {[%emt 0:03:07]} c4 {[%emt 0:11:12]} 9. Bc2 {[%emt 0:02:56]} b5 {[%emt 0:07:15]} 10. e4 {[%emt 0:01:34]} dxe4 {[%emt 0:03:21]} 11. Nxe4 {[%emt 0:00:20]} Bb7 {[%emt 0:00:59]} 12. Ned2 {[%emt 0:06:02]} Nd5 {[%emt 0:04:09]} 13. Bg3 {[%emt 0:01:31]} Rc8 {[%emt 0:05:12]} 14. O-O {[%emt 0:07:32]} O-O {[%emt 0:01:31]} 15. Re1 {[%emt 0:02:03]} N7f6 {[%emt 0:04:09]} 16. Ne5 {[%emt 0:04:22]} Nb6 {[%emt 0:07:32]} 17. Ne4 {[%emt 0:04:25]} b4 {[%emt 0:06:38]} 18. Nxf6+ {[%emt 0:11:03]} Bxf6 {[%emt 0:01:03]} 19. cxb4 {[%emt 0:05:57]} Nd5 {[%emt 0:04:32]} 20. a3 {[%emt 0:04:37]} Bg5 {[%emt 0:06:21]} 21. Qe2 {[%emt 0:14:29]} c3 {[%emt 0:06:07]} 22. Qd3 {[%emt 0:02:27]} f5 {[%emt 0:00:42]} 23. b3 {[%emt 0:00:13]} Bd2 {[%emt 0:01:03]} 24. Re2 {[%emt 0:01:34]} Nf6 {[%emt 0:05:12]} 25. f3 {[%emt 0:01:25]} Nh5 {[%emt 0:01:43]} 26. Nc4 {[%emt 0:02:56]} Qg5 {[%emt 0:04:28]} 27. Nxd2 {[%emt 0:06:24]} Nxg3 {[%emt 0:00:06]} 28. hxg3 {[%emt 0:00:32]} cxd2 {[%emt 0:00:10]} 29. f4 {[%emt 0:01:33]} Qg4 {[%emt 0:00:31]} 30. Qxd2 {[%emt 0:05:05]} Qxg3 {[%emt 0:00:10]} 31. Bd3 {[%emt 0:01:35]} Bd5 {[%emt 0:02:18]} 32. Qe3 {[%emt 0:00:51]} Qxe3+ {[%emt 0:01:06]} 33. Rxe3 {[%emt 0:00:05]} Rc3 {[%emt 0:00:04]} 34. Kf2 {[%emt 0:04:01]} Rxb3 {[%emt 0:00:13]} 35. Ba6 {[%emt 0:00:06]} Rxe3 {[%emt 0:00:33]} 36. Kxe3 {[%emt 0:00:04]} Bxg2 {[%emt 0:00:03]} 37. Rc1 {[%emt 0:00:09]} Rf7 {[%emt 0:01:19]} 38. a4 {[%emt 0:00:46]} Rd7 {[%emt 0:03:56]} 39. Bc8 {[%emt 0:00:15]} Re7 {[%emt 0:00:05]} 40. b5 {[%emt 0:01:57]} Kf8 {[%emt 0:00:48]} 41. a5 {[%emt 0:15:32]} Ke8 {[%emt 0:15:24]} 42. d5 {[%emt 0:00:00]} Bxd5 {[%emt 0:00:00]} 43. Kd4 {[%emt 0:00:00]} Kd8 {[%emt 0:00:00]} 44. b6 {[%emt 0:00:00]} axb6 {[%emt 0:00:00]} 45. axb6 {[%emt 0:00:00]} g5 {[%emt 0:00:00]} 46. Ba6 {[%emt 0:00:00]} Bb7 {[%emt 0:00:00]} 47. Bxb7 {[%emt 0:00:00]} Rxb7 {[%emt 0:00:00]} 48. Kc5 {[%emt 0:00:00]} gxf4 {[%emt 0:06:02]} 49. Kc6 {[%emt 0:00:10]} Rb8 {[%emt 0:00:05]} 50. Rg1 {[%emt 0:00:28]} Ke7 {[%emt 0:00:39]} 51. Kc7 {[%emt 0:00:37]} Rh8 {[%emt 0:01:26]} 52. b7 {[%emt 0:03:01]} e5 {[%emt 0:00:50]} 53. Ra1 {[%emt 0:02:56]} Kf6 {[%emt 0:01:36]} 54. Ra8 {[%emt 0:01:27]} Rh7+ {[%emt 0:00:04]} 55. Kc6 {[%emt 0:00:15]} Rxb7 {[%emt 0:00:08]} 56. Kxb7 {[%emt 0:00:03]} f3 {[%emt 0:00:11]} 1/2-1/2

[Event "DSAM Bad Wildungen 2024"]
[Site "Bad Wildungen"]
[Date "2024.08.02"]
[Round "3.9"]
[White "Kamp, Adrian"]
[Black "Schabe, Felix"]
[Result "1-0"]
[Annotator "RC"]
[ECO "B09"]
[WhiteElo "2120"]
[BlackElo "2065"]
[PlyCount "61"]
[EventDate "2024.07.31"]
[EventCountry "GER"]
[SourceTitle "playchess.com"]
[Source "ChessBase"]
[SourceQuality "1"]
[TimeControl "40/5400+30:900+30"]

1. e4 {[%emt 0:00:24]} d6 {[%emt 0:01:02]} 2. d4 {[%emt 0:00:29]} Nf6 {[%emt 0:00:07]} 3. Nc3 {[%emt 0:00:10]} g6 {[%emt 0:00:26]} 4. f4 {[%emt 0:00:53]} Bg7 {[%emt 0:01:04]} 5. Nf3 {[%emt 0:00:37]} O-O {[%emt 0:00:49]} 6. e5 {[%emt 0:01:08]} dxe5 {[%emt 0:00:56]} 7. fxe5 {[%emt 0:00:16]} Nd5 {[%emt 0:00:14]} 8. Bc4 {[%emt 0:00:18]} Nb6 {[%emt 0:03:57]} 9. Bb3 {[%emt 0:00:39]} Nc6 {[%emt 0:00:23]} 10. O-O {[%emt 0:03:50]} Bg4 {[%emt 0:01:50]} 11. Be3 {[%emt 0:01:40]} Na5 {[%emt 0:02:59]} 12. Qe2 {[%emt 0:10:37]} c5 {[%emt 0:02:55]} 13. dxc5 {[%emt 0:02:29]} Nd7 {[%emt 0:02:26]} 14. Bd4 {[%emt 0:10:31]} Nc6 {[%emt 0:03:24]} 15. Rad1 {[%emt 0:01:59]} Qc8 {[%emt 0:00:48]} 16. Nd5 {[%emt 0:15:46]} Nxd4 {[%emt 0:08:10]} 17. Nxe7+ {[%emt 0:01:43]} Kh8 {[%emt 0:00:06]} 18. Rxd4 {[%emt 0:00:08]} Qxc5 {[%emt 0:00:18]} 19. Qf2 {[%emt 0:00:05]} h5 {[%emt 0:14:12]} 20. Rxd7 {[%emt 0:15:46]} Qxf2+ {[%emt 0:00:08]} 21. Rxf2 {[%emt 0:00:25]} Bxd7 {[%emt 0:00:10]} 22. e6 {[%emt 0:00:06]} Rae8 {[%emt 0:02:46]} 23. Nxg6+ {[%emt 0:05:15]} fxg6 {[%emt 0:01:26]} 24. exd7 {[%emt 0:00:13]} Re7 {[%emt 0:03:55]} 25. Ne5 {[%emt 0:02:59]} Rd8 {[%emt 0:06:27]} 26. Nxg6+ {[%emt 0:02:05]} Kh7 {[%emt 0:00:02]} 27. Nxe7 {[%emt 0:00:32]} Bd4 {[%emt 0:00:33]} 28. Bg8+ {[%emt 0:00:58]} Kh8 {[%emt 0:00:18]} 29. Be6 {[%emt 0:00:19]} Bxf2+ {[%emt 0:00:46]} 30. Kxf2 {[%emt 0:00:07]} Kg7 {[%emt 0:00:02]} 31. Nd5 {[%emt 0:00:38]} 1-0

[Event "DSAM Bad Wildungen 2024"]
[Site "Bad Wildungen"]
[Date "2024.08.02"]
[Round "3.10"]
[White "Kull, Florian"]
[Black "Musiienko, Tymur"]
[Result "1/2-1/2"]
[Annotator "RC"]
[ECO "D79"]
[WhiteElo "2113"]
[BlackElo "2093"]
[PlyCount "39"]
[EventDate "2024.07.31"]
[EventCountry "GER"]
[SourceTitle "playchess.com"]
[Source "ChessBase"]
[SourceQuality "1"]
[TimeControl "40/5400+30:900+30"]

1. Nf3 {[%emt 0:00:27]} Nf6 {[%emt 0:02:14]} 2. g3 {[%emt 0:00:11]} g6 {[%emt 0:02:52]} 3. Bg2 {[%emt 0:00:16]} Bg7 {[%emt 0:00:07]} 4. O-O {[%emt 0:00:08]} d5 {[%emt 0:00:47]} 5. d4 {[%emt 0:01:27]} O-O {[%emt 0:00:11]} 6. c4 {[%emt 0:00:06]} c6 {[%emt 0:00:13]} 7. cxd5 {[%emt 0:00:11]} cxd5 {[%emt 0:00:10]} 8. Nc3 {[%emt 0:00:11]} Ne4 {[%emt 0:00:38]} 9. Nxe4 {[%emt 0:03:12]} dxe4 {[%emt 0:00:10]} 10. Ng5 {[%emt 0:00:10]} Qxd4 {[%emt 0:11:47]} 11. Qxd4 {[%emt 0:00:19]} Bxd4 {[%emt 0:00:03]} 12. Rd1 {[%emt 0:00:21]} Nc6 {[%emt 0:02:43]} 13. Bxe4 {[%emt 0:00:17]} Bg7 {[%emt 0:05:55]} 14. Rb1 {[%emt 0:01:06]} h6 {[%emt 0:08:34]} 15. Nf3 {[%emt 0:00:14]} Be6 {[%emt 0:00:34]} 16. b3 {[%emt 0:00:27]} Rfd8 {[%emt 0:04:31]} 17. Be3 {[%emt 0:02:53]} a5 {[%emt 0:06:06]} 18. Rxd8+ {[%emt 0:18:02]} Rxd8 {[%emt 0:00:33]} 19. Bb6 {[%emt 0:02:47]} Ra8 {[%emt 0:13:30]} 20. Bc5 {[%emt 1:07:45]} 1/2-1/2

[Event "DSAM Bad Wildungen 2024"]
[Site "Bad Wildungen"]
[Date "2024.08.02"]
[Round "3.11"]
[White "Herter, Arne"]
[Black "Heck, Norbert"]
[Result "1-0"]
[Annotator "RC"]
[ECO "B28"]
[WhiteElo "2065"]
[BlackElo "2099"]
[PlyCount "57"]
[EventDate "2024.07.31"]
[EventCountry "GER"]
[SourceTitle "playchess.com"]
[Source "ChessBase"]
[SourceQuality "1"]
[TimeControl "40/5400+30:900+30"]

1. e4 {[%emt 0:00:03]} c5 {[%emt 0:00:06]} 2. Nf3 {[%emt 0:00:10]} a6 {[%emt 0:00:06]} 3. c3 {[%emt 0:00:09]} d5 {[%emt 0:00:11]} 4. exd5 {[%emt 0:00:07]} Qxd5 {[%emt 0:00:05]} 5. d4 {[%emt 0:00:11]} e6 {[%emt 0:00:17]} 6. Be3 {[%emt 0:00:24]} Nd7 {[%emt 0:00:43]} 7. Bd3 {[%emt 0:02:12]} Ngf6 {[%emt 0:00:52]} 8. O-O {[%emt 0:00:49]} Be7 {[%emt 0:01:19]} 9. Qc2 {[%emt 0:07:45]} O-O {[%emt 0:03:16]} 10. Rd1 {[%emt 0:08:28]} cxd4 {[%emt 0:11:52]} 11. cxd4 {[%emt 0:01:59]} b5 {[%emt 0:03:13]} 12. Nc3 {[%emt 0:02:26]} Qc6 {[%emt 0:08:53]} 13. d5 {[%emt 0:05:12]} Qb7 {[%emt 0:08:33]} 14. dxe6 {[%emt 0:04:57]} fxe6 {[%emt 0:00:09]} 15. Ng5 {[%emt 0:02:57]} Ne5 {[%emt 0:01:17]} 16. Bxh7+ {[%emt 0:11:14]} Kh8 {[%emt 0:00:09]} 17. Be4 {[%emt 0:05:39]} Nxe4 {[%emt 0:00:23]} 18. Ncxe4 {[%emt 0:00:28]} Rf5 {[%emt 0:03:53]} 19. Nd6 {[%emt 0:24:02]} Bxd6 {[%emt 0:00:07]} 20. Rxd6 {[%emt 0:00:05]} Qe7 {[%emt 0:00:31]} 21. Rad1 {[%emt 0:03:03]} Bb7 {[%emt 0:00:39]} 22. Rxe6 {[%emt 0:03:36]} Qxg5 {[%emt 0:01:50]} 23. Bxg5 {[%emt 0:02:22]} Rxg5 {[%emt 0:00:10]} 24. Red6 {[%emt 0:08:19]} Rg8 {[%emt 0:04:26]} 25. Rd8 {[%emt 0:01:04]} Rxg2+ {[%emt 0:00:14]} 26. Kf1 {[%emt 0:00:12]} Ng6 {[%emt 0:07:22]} 27. Rxg8+ {[%emt 0:00:43]} Kxg8 {[%emt 0:00:11]} 28. Qb3+ {[%emt 0:00:38]} Kf8 {[%emt 0:00:48]} 29. Qe6 {[%emt 0:00:28]} 1-0

[Event "DSAM Bad Wildungen 2024"]
[Site "Bad Wildungen"]
[Date "2024.08.02"]
[Round "3.12"]
[White "Bartelt, Max Peter"]
[Black "Buchinger, Alexis"]
[Result "1-0"]
[Annotator "RC"]
[ECO "D02"]
[WhiteElo "2069"]
[BlackElo "2116"]
[PlyCount "71"]
[EventDate "2024.07.31"]
[EventCountry "GER"]
[SourceTitle "playchess.com"]
[Source "ChessBase"]
[SourceQuality "1"]
[TimeControl "40/5400+30:900+30"]

1. d4 {[%emt 0:00:04]} d5 {[%emt 0:00:19]} 2. Bf4 {[%emt 0:00:45]} Nf6 {[%emt 0:00:31]} 3. e3 {[%emt 0:01:03]} c5 {[%emt 0:02:03]} 4. Nf3 {[%emt 0:00:22]} Nc6 {[%emt 0:02:04]} 5. Be2 {[%emt 0:02:55]} Qb6 {[%emt 0:01:15]} 6. Nc3 {[%emt 0:01:50]} c4 {[%emt 0:03:56]} 7. Rb1 {[%emt 0:05:18]} Qa5 {[%emt 0:03:31]} 8. O-O {[%emt 0:06:11]} b5 {[%emt 0:05:39]} 9. Ne5 {[%emt 0:03:17]} Bb7 {[%emt 0:03:46]} 10. g4 {[%emt 0:15:10]} e6 {[%emt 0:14:33]} 11. g5 {[%emt 0:01:17]} Nxe5 {[%emt 0:02:14]} 12. b4 {[%emt 0:11:51]} Bxb4 {[%emt 0:06:27]} 13. Nxb5 {[%emt 0:05:00]} Qxb5 {[%emt 0:12:04]} 14. gxf6 {[%emt 0:08:48]} Nc6 {[%emt 0:02:24]} 15. fxg7 {[%emt 0:01:11]} Rg8 {[%emt 0:00:12]} 16. Bh6 {[%emt 0:09:06]} Qa6 {[%emt 0:02:48]} 17. Bh5 {[%emt 0:00:05]} Bd6 {[%emt 0:15:00]} 18. f4 {[%emt 0:04:58]} Bc8 {[%emt 0:05:39]} 19. Bxf7+ {[%emt 0:01:24]} Kxf7 {[%emt 0:00:08]} 20. Qh5+ {[%emt 0:00:05]} Ke7 {[%emt 0:01:34]} 21. f5 {[%emt 0:01:56]} exf5 {[%emt 0:03:36]} 22. Bg5+ {[%emt 0:00:06]} Kd7 {[%emt 0:02:03]} 23. Qxh7 {[%emt 0:01:20]} Ne7 {[%emt 0:07:46]} 24. Bxe7 {[%emt 0:02:08]} Rxg7+ {[%emt 0:00:11]} 25. Qxg7 {[%emt 0:00:04]} Bxe7 {[%emt 0:00:03]} 26. Rxf5 {[%emt 0:00:22]} Bb7 {[%emt 0:02:49]} 27. Re5 {[%emt 0:04:56]} Re8 {[%emt 0:00:40]} 28. Qf7 {[%emt 0:00:04]} Qc6 {[%emt 0:00:38]} 29. Rxb7+ {[%emt 0:02:00]} Qxb7 {[%emt 0:00:14]} 30. Rxd5+ {[%emt 0:00:05]} Kc6 {[%emt 0:00:48]} 31. Qe6+ {[%emt 0:00:11]} Kc7 {[%emt 0:00:21]} 32. Qd7+ {[%emt 0:00:11]} Kb8 {[%emt 0:00:19]} 33. Qxe8+ {[%emt 0:00:34]} Qc8 {[%emt 0:00:13]} 34. Rb5+ {[%emt 0:00:04]} Kc7 {[%emt 0:00:03]} 35. Qxe7+ {[%emt 0:00:07]} Kc6 {[%emt 0:00:10]} 36. Rc5+ {[%emt 0:00:05]} 1-0

[Event "DSAM Bad Wildungen 2024"]
[Site "Bad Wildungen"]
[Date "2024.08.02"]
[Round "3.13"]
[White "Ermel, Dirk"]
[Black "Kuhn, Juergen"]
[Result "1-0"]
[Annotator "ChessBase"]
[ECO "A29"]
[WhiteElo "2046"]
[BlackElo "1965"]
[PlyCount "151"]
[EventDate "2024.07.31"]
[EventCountry "GER"]
[SourceTitle "playchess.com"]
[Source "ChessBase"]
[SourceQuality "1"]
[TimeControl "40/5400+30:900+30"]

1. c4 {[%emt 0:00:03]} Nf6 {[%emt 0:00:19]} 2. Nc3 {[%emt 0:00:13]} e5 {[%emt 0:00:50]} 3. Nf3 {[%emt 0:00:22]} Nc6 {[%emt 0:01:25]} 4. g3 {[%emt 0:00:25]} d5 {[%emt 0:06:04]} 5. cxd5 {[%emt 0:00:30]} Nxd5 {[%emt 0:00:04]} 6. Bg2 {[%emt 0:00:34]} Nb6 {[%emt 0:00:05]} 7. O-O {[%emt 0:00:51]} Be7 {[%emt 0:00:06]} 8. a3 {[%emt 0:04:02]} Be6 {[%emt 0:03:49]} 9. b4 {[%emt 0:02:57]} O-O {[%emt 0:09:04]} 10. Bb2 {[%emt 0:05:05]} Nc4 {[%emt 0:11:36]} 11. Bc1 {[%emt 0:02:32]} f5 {[%emt 0:04:38]} 12. d3 {[%emt 0:03:01]} Nb6 {[%emt 0:01:07]} 13. Bb2 {[%emt 0:14:21]} Bf6 {[%emt 0:04:02]} 14. b5 {[%emt 0:09:30]} Nd4 {[%emt 0:09:48]} 15. Nd2 {[%emt 0:04:32]} Nd5 {[%emt 0:07:32]} 16. Nxd5 {[%emt 0:08:38]} Bxd5 {[%emt 0:00:15]} 17. Bxd4 {[%emt 0:00:13]} Bxg2 {[%emt 0:02:09]} 18. Kxg2 {[%emt 0:00:17]} Qxd4 {[%emt 0:01:09]} 19. Qb3+ {[%emt 0:01:37]} Kh8 {[%emt 0:00:05]} 20. Rac1 {[%emt 0:01:24]} Qd7 {[%emt 0:05:05]} 21. Rc5 {[%emt 0:09:07]} Rae8 {[%emt 0:05:50]} 22. Rfc1 {[%emt 0:05:11]} Bd8 {[%emt 0:00:25]} 23. Nf3 {[%emt 0:02:46]} e4 {[%emt 0:02:30]} 24. Ne5 {[%emt 0:01:25]} Qe6 {[%emt 0:03:05]} 25. Qxe6 {[%emt 0:00:56]} Rxe6 {[%emt 0:00:05]} 26. d4 {[%emt 0:00:12]} g5 {[%emt 0:04:43]} 27. Rd5 {[%emt 0:05:05]} Rd6 {[%emt 0:02:37]} 28. Rxd6 {[%emt 0:03:54]} cxd6 {[%emt 0:00:05]} 29. Nc4 {[%emt 0:00:12]} d5 {[%emt 0:02:29]} 30. Ne3 {[%emt 0:01:45]} Bb6 {[%emt 0:00:48]} 31. Nxd5 {[%emt 0:00:33]} Bxd4 {[%emt 0:00:04]} 32. Rc7 {[%emt 0:00:47]} f4 {[%emt 0:00:36]} 33. e3 {[%emt 0:04:34]} fxe3 {[%emt 0:09:53]} 34. fxe3 {[%emt 0:00:07]} Bb2 {[%emt 0:00:04]} 35. Rxb7 {[%emt 0:02:13]} Rd8 {[%emt 0:00:17]} 36. Ne7 {[%emt 0:05:30]} Bxa3 {[%emt 0:03:18]} 37. Nf5 {[%emt 0:01:51]} Bc5 {[%emt 0:01:01]} 38. g4 {[%emt 0:01:04]} Kg8 {[%emt 0:01:13]} 39. Rc7 {[%emt 0:00:19]} Rd2+ {[%emt 0:00:58]} 40. Kg3 {[%emt 0:01:06]} Bd6+ {[%emt 0:00:17]} 41. Nxd6 {[%emt 0:15:17]} Rxd6 {[%emt 0:15:09]} 42. Rxa7 {[%emt 0:00:00]} Rb6 {[%emt 0:00:00]} 43. Ra5 {[%emt 0:00:00]} Kg7 {[%emt 0:00:00]} 44. h4 {[%emt 0:00:00]} h6 {[%emt 0:00:00]} 45. h5 {[%emt 0:00:00]} Rf6 {[%emt 0:00:00]} 46. Ra7+ {[%emt 0:00:00]} Kg8 {[%emt 0:00:00]} 47. Ra6 {[%emt 0:00:00]} Rf3+ {[%emt 0:00:00]} 48. Kg2 {[%emt 0:00:00]} Rxe3 {[%emt 0:00:00]} 49. Rxh6 {[%emt 0:00:00]} Rb3 {[%emt 0:00:00]} 50. Rg6+ {[%emt 0:00:00]} Kf7 {[%emt 0:00:42]} 51. Rxg5 {[%emt 0:00:00]} Kf6 {[%emt 0:00:10]} 52. Rf5+ {[%emt 0:00:00]} Kg7 {[%emt 0:00:05]} 53. Re5 {[%emt 0:00:00]} Rb2+ {[%emt 0:01:30]} 54. Kg3 {[%emt 0:00:00]} e3 {[%emt 0:00:08]} 55. Rxe3 {[%emt 0:00:21]} Rxb5 {[%emt 0:00:05]} 56. Kf4 {[%emt 0:00:14]} Rb1 {[%emt 0:02:55]} 57. Re5 {[%emt 0:02:38]} Rf1+ {[%emt 0:01:57]} 58. Kg5 {[%emt 0:00:08]} Rf7 {[%emt 0:00:26]} 59. Re6 {[%emt 0:02:14]} Kh7 {[%emt 0:00:58]} 60. h6 {[%emt 0:01:27]} Rc7 61. Kh5 {[%emt 0:03:57]} Rc5+ 62. g5 Rb5 63. Re7+ Kg8 64. Kg6 Rb6+ 65. Kf5 Rb5+ 66. Re5 Rb1 67. Re6 Rf1+ 68. Kg6 Rf8 69. Re7 Kh8 70. Kh5 Kg8 71. g6 Rb8 72. Kg5 Rc8 73. Kf6 Rc6+ 74. Re6 Rc8 75. Rd6 Rf8+ {[%emt 0:08:34]} 76. Ke7 {[%emt 0:03:40]} 1-0

[Event "DSAM Bad Wildungen 2024"]
[Site "Bad Wildungen"]
[Date "2024.08.02"]
[Round "3.14"]
[White "Tueckmantel, Rene"]
[Black "Hund, Sarah"]
[Result "1-0"]
[Annotator "ChessBase"]
[ECO "D05"]
[WhiteElo "2057"]
[BlackElo "1994"]
[PlyCount "109"]
[EventDate "2024.07.31"]
[EventCountry "GER"]
[SourceTitle "playchess.com"]
[Source "ChessBase"]
[SourceQuality "1"]
[TimeControl "40/5400+30:900+30"]

1. Nf3 {[%emt 0:00:02]} d5 {[%emt 0:00:09]} 2. b3 {[%emt 0:00:07]} Nf6 {[%emt 0:01:43]} 3. Bb2 {[%emt 0:00:10]} e6 {[%emt 0:00:57]} 4. e3 {[%emt 0:00:33]} Be7 {[%emt 0:01:37]} 5. d4 {[%emt 0:00:31]} O-O {[%emt 0:01:12]} 6. Bd3 {[%emt 0:00:22]} b6 {[%emt 0:03:06]} 7. O-O {[%emt 0:00:41]} c5 {[%emt 0:02:31]} 8. Nbd2 {[%emt 0:01:44]} Bb7 {[%emt 0:02:15]} 9. Ne5 {[%emt 0:08:38]} cxd4 {[%emt 0:05:26]} 10. exd4 {[%emt 0:00:24]} Nc6 {[%emt 0:00:56]} 11. a3 {[%emt 0:00:55]} Re8 {[%emt 0:04:58]} 12. Qf3 {[%emt 0:05:47]} Bf8 {[%emt 0:07:01]} 13. Rfe1 {[%emt 0:10:17]} g6 {[%emt 0:04:31]} 14. Qf4 {[%emt 0:15:17]} Bg7 {[%emt 0:06:00]} 15. Rad1 {[%emt 0:04:07]} Rc8 {[%emt 0:07:07]} 16. g4 {[%emt 0:09:43]} Qc7 {[%emt 0:10:15]} 17. f3 {[%emt 0:02:43]} Re7 {[%emt 0:07:41]} 18. Qg3 {[%emt 0:06:15]} Nxe5 {[%emt 0:03:06]} 19. dxe5 {[%emt 0:00:42]} Nd7 {[%emt 0:00:23]} 20. b4 {[%emt 0:03:41]} Nb8 {[%emt 0:05:51]} 21. Rc1 {[%emt 0:04:33]} Rd7 {[%emt 0:01:56]} 22. Nb3 {[%emt 0:03:03]} a6 {[%emt 0:04:55]} 23. Nd4 {[%emt 0:01:39]} Nc6 {[%emt 0:01:00]} 24. Nxc6 {[%emt 0:01:30]} Qxc6 {[%emt 0:01:00]} 25. Bd4 {[%emt 0:01:38]} Qa4 {[%emt 0:00:43]} 26. c3 {[%emt 0:02:13]} Qxa3 {[%emt 0:02:31]} 27. Qf2 {[%emt 0:01:38]} Qa4 {[%emt 0:02:51]} 28. b5 {[%emt 0:01:14]} Qa3 {[%emt 0:02:55]} 29. bxa6 {[%emt 0:00:47]} Bxa6 {[%emt 0:00:55]} 30. Ra1 {[%emt 0:00:53]} Qxa1 {[%emt 0:00:17]} 31. Rxa1 {[%emt 0:00:01]} Bxd3 {[%emt 0:00:07]} 32. Qe3 {[%emt 0:01:24]} Bc4 {[%emt 0:00:55]} 33. Bxb6 {[%emt 0:00:56]} Rb7 {[%emt 0:02:07]} 34. Ra7 {[%emt 0:02:22]} Rcb8 {[%emt 0:01:06]} 35. Rxb7 {[%emt 0:00:42]} Rxb7 {[%emt 0:00:04]} 36. Qc5 {[%emt 0:02:24]} Rb8 {[%emt 0:04:05]} 37. Bc7 {[%emt 0:03:20]} Rb1+ {[%emt 0:01:27]} 38. Kg2 {[%emt 0:00:52]} h5 {[%emt 0:01:26]} 39. Qe7 {[%emt 0:01:03]} hxg4 {[%emt 0:00:47]} 40. Qe8+ {[%emt 0:02:04]} Kh7 {[%emt 0:00:06]} 41. fxg4 {[%emt 0:03:55]} Rf1 {[%emt 0:01:49]} 42. Bd6 {[%emt 0:02:56]} g5 {[%emt 0:04:26]} 43. Qe7 {[%emt 0:00:48]} Kg6 {[%emt 0:06:52]} 44. h4 {[%emt 0:00:51]} Bh6 {[%emt 0:00:34]} 45. Bc5 {[%emt 0:02:55]} gxh4 {[%emt 0:02:02]} 46. Qxh4 {[%emt 0:02:01]} Be2 {[%emt 0:01:26]} 47. Bf2 {[%emt 0:00:59]} Bd2 {[%emt 0:01:47]} 48. Qf6+ {[%emt 0:00:46]} Kh7 {[%emt 0:00:03]} 49. Qxf7+ {[%emt 0:00:23]} Kh8 {[%emt 0:00:04]} 50. Qe8+ {[%emt 0:01:08]} Kh7 {[%emt 0:00:25]} 51. Qe7+ {[%emt 0:00:26]} Kh8 {[%emt 0:00:12]} 52. Qxe6 {[%emt 0:00:16]} Bc4 {[%emt 0:01:12]} 53. Qf6+ {[%emt 0:00:45]} Kh7 {[%emt 0:00:29]} 54. e6 {[%emt 0:00:44]} d4 {[%emt 0:00:44]} 55. Qxd4 {[%emt 0:00:54]} 1-0

[Event "DSAM Bad Wildungen 2024"]
[Site "Bad Wildungen"]
[Date "2024.08.02"]
[Round "3.15"]
[White "Willand, Oliver"]
[Black "Derr, Oleg"]
[Result "0-1"]
[Annotator "RC"]
[ECO "B44"]
[WhiteElo "1868"]
[BlackElo "1947"]
[PlyCount "88"]
[EventDate "2024.07.31"]
[EventCountry "GER"]
[SourceTitle "playchess.com"]
[Source "ChessBase"]
[SourceQuality "1"]
[TimeControl "40/5400+30:900+30"]

1. e4 {[%emt 0:00:03]} c5 {[%emt 0:00:04]} 2. c4 {[%emt 0:00:13]} Nc6 {[%emt 0:00:05]} 3. Ne2 {[%emt 0:00:47]} e6 {[%emt 0:00:18]} 4. Nbc3 {[%emt 0:01:21]} Nf6 {[%emt 0:01:00]} 5. d4 {[%emt 0:07:40]} cxd4 {[%emt 0:00:06]} 6. Nxd4 {[%emt 0:00:24]} Bc5 {[%emt 0:02:17]} 7. Nxc6 {[%emt 0:09:08]} dxc6 {[%emt 0:00:41]} 8. Qxd8+ {[%emt 0:01:40]} Kxd8 {[%emt 0:00:06]} 9. Be2 {[%emt 0:08:15]} e5 {[%emt 0:05:48]} 10. O-O {[%emt 0:08:57]} Be6 {[%emt 0:02:23]} 11. a3 {[%emt 0:08:00]} Kc7 {[%emt 0:03:41]} 12. h3 {[%emt 0:09:23]} h6 {[%emt 0:03:39]} 13. Kh2 {[%emt 0:02:03]} Bd4 {[%emt 0:04:37]} 14. Bd2 {[%emt 0:02:22]} Rad8 {[%emt 0:02:28]} 15. Rad1 {[%emt 0:00:59]} Kc8 {[%emt 0:01:35]} 16. g4 {[%emt 0:06:02]} g5 {[%emt 0:03:13]} 17. f3 {[%emt 0:02:49]} Rd7 {[%emt 0:05:57]} 18. Kg2 {[%emt 0:00:50]} Rhd8 {[%emt 0:01:23]} 19. b3 {[%emt 0:01:35]} Ne8 {[%emt 0:03:18]} 20. Nb1 {[%emt 0:04:58]} Nc7 {[%emt 0:01:43]} 21. Bc3 {[%emt 0:01:44]} f6 {[%emt 0:02:37]} 22. Bxd4 {[%emt 0:00:59]} Rxd4 {[%emt 0:00:58]} 23. Rxd4 {[%emt 0:00:21]} Rxd4 {[%emt 0:00:27]} 24. Rd1 {[%emt 0:00:38]} Bf7 {[%emt 0:00:13]} 25. Rxd4 {[%emt 0:10:26]} exd4 {[%emt 0:00:06]} 26. Kf2 {[%emt 0:01:08]} Ne6 {[%emt 0:00:25]} 27. Ke1 {[%emt 0:01:24]} Nf4 {[%emt 0:01:31]} 28. Bf1 {[%emt 0:00:16]} Kc7 {[%emt 0:00:17]} 29. Kd2 {[%emt 0:02:54]} Kd6 {[%emt 0:00:33]} 30. Kc2 {[%emt 0:01:30]} Ke5 {[%emt 0:00:35]} 31. Nd2 {[%emt 0:00:28]} Ne6 {[%emt 0:00:47]} 32. Be2 {[%emt 0:01:40]} b6 {[%emt 0:06:39]} 33. b4 {[%emt 0:00:49]} c5 {[%emt 0:00:53]} 34. b5 {[%emt 0:01:18]} Kf4 {[%emt 0:01:34]} 35. Nf1 {[%emt 0:00:14]} Nf8 {[%emt 0:00:17]} 36. Kd2 {[%emt 0:01:08]} Ng6 {[%emt 0:00:15]} 37. Ke1 {[%emt 0:01:48]} Ne5 {[%emt 0:00:23]} 38. Kf2 {[%emt 0:00:13]} Nxc4 {[%emt 0:01:47]} 39. Ng3 {[%emt 0:00:07]} Nxa3 {[%emt 0:00:20]} 40. Nf5 {[%emt 0:00:17]} Ke5 {[%emt 0:01:22]} 41. Ne7 {[%emt 0:15:45]} Be8 {[%emt 0:15:22]} 42. Nc8 {[%emt 0:02:03]} Nxb5 {[%emt 0:00:30]} 43. Bxb5 {[%emt 0:00:35]} Bxb5 {[%emt 0:00:06]} 44. Nxa7 {[%emt 0:00:04]} Bd7 {[%emt 0:00:07]} 0-1